Cogmind - Beta 17 @@@ ROGUE MODE // 2026.07.18 @ 11:33:14 Player: Lazz Result: Destroyed by S-27 Virus with Autogun Performance ------------- Evolutions (4) 2000 Regions Visited (14) 2800 Robots Destroyed (92) 460 Value Destroyed (4413) 4413 Prototype IDs (26) 520 Alien Tech Used (0) 0 Bonus (3693) 3693 TOTAL SCORE: 13886 Bonus ------- High Alert Combat Kills 404 Follower Combat Kills 189 Entered Garrisons 800 Used RIF Installer 2000 Aligned with FarCom 300 Cogmind --------- Core Integrity 0/850 Matter 249/300 Energy 88/100 System Corruption 1% Temperature Cool (9) Movement Core (50) Location -6/Garrison Parts ------- > --- POWER (1) -------- (None) > --- PROPULSION (5) --- (None) > --- UTILITY (4) ------ Improved Targeting Computer Improved Light Armor Plating > --- WEAPON (5) ------- (None) > --- INVENTORY (5) ---- Advanced Heat Sink Small Matter Pod (50) Relay Coupler [Hunter] (15) Relay Coupler [Hunter] (19) Peak State ------------ > --- POWER ------------ Angular Momentum Engine > --- PROPULSION ------- Carbon-fiber Leg Carbon-fiber Leg Improved Carbon-fiber Leg Flexi-carbon Leg Flexi-carbon Leg > --- UTILITY ---------- Advanced Heat Sink High-capacity Storage Unit Improved Targeting Computer Hacking Suite > --- WEAPON ----------- Heavy Laser Heavy Laser Gauss Rifle Gauss Rifle Heavy Machine Gun > --- INVENTORY -------- Light Nuclear Core Light Nuclear Core Carbon-fiber Leg Carbon-fiber Leg Carbon-fiber Leg Wheel Advanced Heat Sink Large Storage Unit Small Matter Pod Small Matter Pod Improved Light Armor Plating Improved Light Armor Plating Relay Coupler [Grunt] Relay Coupler [Sentry] Relay Coupler [Sentry] Relay Coupler [Specialist] Relay Coupler [Hunter] System Restoration Module Supersonic Drone Bay Remote Datajack [Rating: 63] Favorites ----------- Power Light Nuclear Core Engine Improved Ion Engine Power Core Light Nuclear Core Propulsion Light Treads Treads Light Treads Leg Carbon-fiber Leg Wheel Compact Wheel Utility Improved Targeting Computer Device Advanced Heat Sink Storage Large Storage Unit Processor Improved Targeting Computer Hackware Hacking Suite Protection Weapon Shielding Weapon Heavy Assault Rifle Energy Gun Particle Gun Ballistic Gun Heavy Assault Rifle Ballistic Cannon Advanced Assault Cannon Launcher Rocket Launcher Special Weapon Mining Laser Build | -11 -10 -10 -9 -9 -9 -8 -8 -8 -7 -7 -6 -6 -6 -6 ------- Run | Yrd Mat Min Mat Min Exi Min Mat Gar Fac Gar Fac Gar Fac Gar Slots Evolved 8 | . . . 2 . . . 2 . 2 . 2 . . . Power . | . . . . . . . . . . . . . . . Propulsion 3 | . . . . . . . 1 . . . 2 . . . Utility 2 | . . . . . . . 1 . 1 . . . . . Weapon 3 | . . . 2 . . . . . 1 . . . . . Parts Attached 93 | 7 . . 13 1 2 . 2 13 . 21 7 16 2 9 Power 10 | 1 . . 2 . . . . 1 . 3 1 1 . 1 Engine 5 | 1 . . 2 . . . . . . . 1 1 . . Core 5 | . . . . . . . . 1 . 3 . . . 1 Reactor . | . . . . . . . . . . . . . . . Propulsion 30 | 2 . . 3 . . . . 4 . 6 6 6 . 3 Treads 7 | . . . 3 . . . . 4 . . . . . . Leg 19 | . . . . . . . . . . 6 6 6 . 1 Wheel 3 | 2 . . . . . . . . . . . . . 1 Hover 1 | . . . . . . . . . . . . . . 1 Flight . | . . . . . . . . . . . . . . . Utility 17 | 2 . . 1 1 2 . 2 1 . 3 . 1 2 2 Device 6 | 1 . . . . . . 1 . . 1 . 1 2 . Storage 3 | 1 . . . . 2 . . . . . . . . . Processor 3 | . . . 1 1 . . . . . 1 . . . . Hackware 2 | . . . . . . . . 1 . . . . . 1 Protection 3 | . . . . . . . 1 . . 1 . . . 1 Artifact . | . . . . . . . . . . . . . . . Weapon 36 | 2 . . 7 . . . . 7 . 9 . 8 . 3 Energy Gun 8 | 1 . . . . . . . . . 4 . 3 . . Energy Cannon . | . . . . . . . . . . . . . . . Ballistic Gun 22 | 1 . . 6 . . . . 5 . 3 . 5 . 2 Ballistic Cannon 2 | . . . 1 . . . . . . 1 . . . . Launcher 2 | . . . . . . . . 1 . 1 . . . . Special Weapon 2 | . . . . . . . . 1 . . . . . 1 Impact Weapon . | . . . . . . . . . . . . . . . Slashing Weapon . | . . . . . . . . . . . . . . . Piercing Weapon . | . . . . . . . . . . . . . . . Special Melee Weapon . | . . . . . . . . . . . . . . . Unidentified Prototypes . | . . . . . . . . . . . . . . . Parts Lost 42 | . . . . . . . . . . 15 . 4 . 23 Power 4 | . . . . . . . . . . 1 . . . 3 Propulsion 13 | . . . . . . . . . . 3 . . . 10 Utility 3 | . . . . . . . . . . 1 . . . 2 Weapon 22 | . . . . . . . . . . 10 . 4 . 8 Highest Loss Streak 22 | . . . . . . . . . . 13 . 2 . 22 To Critical Strikes . | . . . . . . . . . . . . . . . Average Backups 12 | . 2 4 7 8 8 12 12 14 13 13 14 19 19 18 Power 1 | . . . . . . . 1 1 1 1 2 2 2 1 Propulsion 1 | . . . . . . . . 1 . 1 2 4 4 3 Utility 6 | . . 1 1 2 2 6 6 6 7 7 8 11 12 12 Weapon 3 | . 1 3 5 6 5 5 5 5 4 2 1 . . . Tool/Special . | . . . . . . . . . . . . . . . Unused Backups 15 | . . . 2 . 1 . . 1 . 1 1 . . 9 Power 3 | . . . . . . . . 1 . 1 1 . . . Propulsion . | . . . . . . . . . . . . . . . Utility 8 | . . . . . . . . . . . . . . 8 Weapon 3 | . . . 2 . 1 . . . . . . . . . Tool/Special 1 | . . . . . . . . . . . . . . 1 Average Slot Usage (%) 97 | . 100 100 99 100 100 100 90 97 99 92 99 99 100 83 Engine 5 | . 14 14 11 11 11 11 9 . . . 2 6 6 4 Core 2 | . . . . . . . . 7 7 6 4 . . . Treads 11 | . . . 9 22 22 22 18 25 23 7 . . . . Leg 11 | . . . . . . . . . . 13 32 33 33 26 Wheel 2 | . 28 28 12 . . . . . . . . . . . Device 3 | . 14 14 9 . . . 1 . 7 3 6 6 6 5 Storage 8 | . 14 14 11 11 11 11 9 9 7 7 6 6 6 5 Processor 7 | . . . 1 11 11 11 9 9 7 8 6 6 6 6 Hackware 3 | . . . . . . . . 5 7 7 6 6 6 5 Energy Gun 4 | . 14 14 1 . . . . . . 7 13 6 13 10 Ballistic Gun 29 | . 14 14 40 44 44 44 36 30 29 20 13 26 20 12 Ballistic Cannon 1 | . . . 1 . . . . . . 4 6 . . . Special Weapon 1 | . . . . . . . . 5 7 . . . . 3 Peak Build Rating 63 | 9 9 9 17 16 17 18 25 23 33 43 57 63 63 63 Average Rating 31 | 4 9 9 15 15 16 17 19 21 32 33 51 61 61 50 On Entrance 26 | . 9 9 9 15 16 17 18 19 23 33 43 57 63 62 Avg Prop Armor Cover (%) 5 | . . . . . . . . . . . . . . 5 Naked Turns . | . . . . . . . . . . . . . . . Heaviest Build 75 | 14 14 14 25 24 59 39 40 40 39 47 70 75 75 75 Greatest Support 88 | 32 32 32 40 40 40 40 40 60 60 60 88 88 88 83 Greatest Overweight (x) 8 | . . . 1 . 1 . . . . 8 . . . 4 Average Overweight (x) . | . . . . . . . . . . . . . . . Largest Inventory Capacity 20 | 8 8 8 8 8 20 15 15 15 15 15 20 20 20 20 Average Capacity 14 | 6 8 8 8 8 10 15 15 15 15 15 16 20 20 18 Most Carried 20 | 1 4 6 8 8 11 13 14 15 14 15 18 20 20 20 Average Carried 12 | . 2 4 7 8 8 12 12 14 13 13 14 19 19 17 Final Capacity 20 | 8 8 8 8 8 15 15 15 15 15 15 20 20 20 5 Final Carried 20 | 1 4 6 8 8 11 13 14 14 14 14 18 20 20 4 Class Distribution -------------------- 62% | Scavenger-Skirmisher 24% | Scavenger-Gunner 8% | Mutant 3% | Skirmisher Dominant Class ---------------- Mutant | -10/Materials Mutant | -10/Mines Skirmisher | -9/Materials Scavenger-Gunner | -9/Mines Scavenger-Gunner | -9/Exiles Scavenger-Skirmisher | -8/Mines Scavenger-Skirmisher | -8/Materials Scavenger-Skirmisher | -8/Garrison Scavenger-Skirmisher | -7/Factory Scavenger-Skirmisher | -7/Garrison Scavenger-Skirmisher | -6/Factory Scavenger-Skirmisher | -6/Garrison Scavenger-Skirmisher | -6/Factory Bothacker-Skirmisher | -6/Garrison Resources | -11 -10 -10 -9 -9 -9 -8 -8 -8 -7 -7 -6 -6 -6 -6 ----------- Run | Yrd Mat Min Mat Min Exi Min Mat Gar Fac Gar Fac Gar Fac Gar Matter Collected 3447 | 280 17 15 282 42 20 116 32 450 . 960 196 860 . 177 Remotely . | . . . . . . . . . . . . . . . Salvage Created 3799 | 105 . 31 384 37 . 161 44 684 . 1040 71 897 . 345 Parts 196 | 10 . 2 27 2 . 6 3 39 . 36 3 46 . 22 Haulers Intercepted 2 | . . . 1 . . . 1 . . . . . . . Recyclers Shooed 1 | 1 . . . . . . . . . . . . . . Parts Field Recycled . | . . . . . . . . . . . . . . . Retrieved Matter . | . . . . . . . . . . . . . . . Parts Self-Destructed . | . . . . . . . . . . . . . . . Prevented . | . . . . . . . . . . . . . . . Parts Restored . | . . . . . . . . . . . . . . . Kills | -11 -10 -10 -9 -9 -9 -8 -8 -8 -7 -7 -6 -6 -6 -6 ------- Run | Yrd Mat Min Mat Min Exi Min Mat Gar Fac Gar Fac Gar Fac Gar Combat Hostiles Destroyed 83 | . . 2 6 1 . 5 . 16 . 23 1 17 . 12 Guns 74 | . . 2 6 1 . 5 . 16 . 16 1 16 . 11 Cannons 3 | . . . . . . . . . . 2 . 1 . . AOE 6 | . . . . . . . . . . 5 . . . 1 Classes Destroyed 13 | 2 . 1 5 . . . . 2 . 2 . 1 . . Worker 1 | . . . 1 . . . . . . . . . . . Tunneler 2 | 2 . . . . . . . . . . . . . . Hauler 2 | . . . 1 . . . 1 . . . . . . . Recycler 1 | 1 . . . . . . . . . . . . . . Mechanic 1 | . . . . . . . . . . 1 . . . . Operator 2 | . . . 1 . . . . . . . 1 . . . Swarmer 21 | . . 2 . . . 3 . 4 . . . 2 . 10 Grunt 33 | . . . 2 1 . 2 . 7 . 11 1 8 . 1 Brawler 1 | . . . . . . . . 1 . . . . . . Duelist 7 | . . . . . . . . 3 . 4 . . . . Sentry 12 | . . . 4 . . . . 1 . 4 . 3 . . Hunter 6 | . . . . . . . . . . 4 . 2 . . Programmer 3 | . . . . . . . . . . . . 2 . 1 Best Kill Streak 11 | 3 . 2 3 1 . 3 1 6 . 7 1 4 . 11 Combat Bots Only 11 | . . 2 3 1 . 3 . 6 . 7 1 4 . 11 Max Kills in Single Turn 3 | 1 . 1 1 1 . 1 1 2 . 2 1 2 . 3 Gunslinging 2 | . . . . . . . . 1 . . . . . 2 Exploded 2 | . . . . . . . . . . 2 . . . 1 Melee . | . . . . . . . . . . . . . . . Uniques/NPCs Destroyed . | . . . . . . . . . . . . . . . Combat | -11 -10 -10 -9 -9 -9 -8 -8 -8 -7 -7 -6 -6 -6 -6 -------- Run | Yrd Mat Min Mat Min Exi Min Mat Gar Fac Gar Fac Gar Fac Gar Hostile Shots Fired 738 | . . 13 18 4 . 16 . 57 . 282 . 139 . 209 Missed 232 | . . 5 5 1 . 6 . 20 . 81 . 49 . 65 Hits 506 | . . 8 13 3 . 10 . 37 . 201 . 90 . 144 Melee 18 | . . . . . . . . 3 . 15 . . . . Projectile 488 | . . 8 13 3 . 10 . 34 . 186 . 90 . 144 Critical Strikes 16 | . . . 1 . . . . 3 . 4 . 3 . 5 Actively Blocked 1 | . . . . . . . . 1 . . . . . . Part Disruptions 2 | . . . . . . . . . . . . . . 2 Damage Taken 6982 | . . 62 179 33 . 133 . 580 . 2282 . 1278 . 2435 Core 1353 | . . . . 11 . 37 . 96 . 351 . 107 . 751 Absorbed by Shields . | . . . . . . . . . . . . . . . Redirected to Shielding 43 | . . . . . . . . 43 . . . . . . Core Remaining (%) 83 | 100 . 100 . . . 88 . 82 . 49 . . . . Volleys Fired 220 | 9 . 5 15 1 . 8 1 45 . 51 6 60 . 19 Largest 5 | 2 . 2 4 4 . 4 4 4 . 5 5 5 . 5 Hottest 253 | 60 . 60 110 92 . 92 92 169 . 221 226 253 . 224 Shots Fired 780 | 18 . 10 60 4 . 32 4 143 . 193 28 222 1 65 Gun 720 | 18 . 10 58 4 . 32 4 131 . 161 22 218 1 61 Cannon 35 | . . . 2 . . . . . . 23 6 4 . . Launcher 8 | . . . . . . . . 1 . 7 . . . . Special 17 | . . . . . . . . 11 . 2 . . . 4 Kinetic 606 | 9 . 5 58 4 . 32 4 131 . 164 18 148 1 32 Thermal 154 | 9 . 5 2 . . . . 11 . 22 10 66 . 29 Explosive 8 | . . . . . . . . 1 . 7 . . . . Electromagnetic 8 | . . . . . . . . . . . . 8 . . Robot Hit Streak 22 | 5 . 2 8 1 . 7 11 15 . 22 13 20 . 15 Robot Miss Streak 7 | 1 . 3 2 1 . 2 . 3 . 7 5 5 . 6 Penetration Max 1 | . . . . . . . . . . . . 1 . 1 Secondary Targets 23 | . . 1 . . . 1 . 7 . 3 . 5 . 6 Max Gunslinging Chain 2 | . . 1 . . . 1 . 2 . 1 . 1 . 2 Shots Hit Robots 463 | 12 . 4 35 2 . 15 4 77 . 132 21 128 . 33 Core Hits 228 | 4 . 2 16 2 . 9 1 32 . 79 15 51 . 17 Critical Kills 3 | . . . . . . . . . . 2 . 1 . . Critical Parts Destroyed 1 | . . . . . . . . . . 1 . . . . Critical Strikes 12 | . . . . . . . . . . 5 1 4 . 2 Burn 6 | . . . . . . . . . . 2 . 2 . 2 Destroy 4 | . . . . . . . . . . 3 . 1 . . Blast 2 | . . . . . . . . . . . 1 1 . . Melee Attacks . | . . . . . . . . . . . . . . . Impact . | . . . . . . . . . . . . . . . Slashing . | . . . . . . . . . . . . . . . Piercing . | . . . . . . . . . . . . . . . Sneak Attacks . | . . . . . . . . . . . . . . . Combat Hostiles . | . . . . . . . . . . . . . . . Follow-up Attacks . | . . . . . . . . . . . . . . . Damage Inflicted 8663 | 135 . 50 507 44 . 265 65 1256 . 2706 443 2479 . 713 Guns 7589 | 135 . 50 489 44 . 265 65 1256 . 1868 318 2393 . 706 Cannons 544 | . . . 18 . . . . . . 315 125 86 . . Explosions 523 | . . . . . . . . . . 523 . . . . Melee . | . . . . . . . . . . . . . . . Ramming 7 | . . . . . . . . . . . . . . 7 Kinetic 6686 | 59 . 26 507 44 . 265 65 1256 . 1966 324 1780 . 394 Thermal 1354 | 76 . 24 . . . . . . . 217 119 606 . 312 Explosive 523 | . . . . . . . . . . 523 . . . . Electromagnetic 93 | . . . . . . . . . . . . 93 . . Impact . | . . . . . . . . . . . . . . . Slashing . | . . . . . . . . . . . . . . . Piercing . | . . . . . . . . . . . . . . . Highest Corruption 1 | . . . . . . . . . . . 1 1 1 1 Average Corruption 1 | . . . . . . . . . . . 1 1 1 1 Corruption Purged 1 | . . . . . . . . . . . . . 1 . Corruption Blocked . | . . . . . . . . . . . . . . . Effects 13 | . . . . . . . . . . . 1 8 3 1 Message Errors 2 | . . . . . . . . . . . . 1 1 . Matter Fused 3 | . . . . . . . . . . . 1 2 . . Energy Discharges 2 | . . . . . . . . . . . . 2 . . Parts Fused 1 | . . . . . . . . . . . . . 1 . Data Loss (minor) 1 | . . . . . . . . . . . . . . 1 Data Loss (major) 1 | . . . . . . . . . . . . 1 . . Misfires 1 | . . . . . . . . . . . . . 1 . Alerts 1 | . . . . . . . . . . . . 1 . . Weapon Failures 1 | . . . . . . . . . . . . 1 . . Overload Shots . | . . . . . . . . . . . . . . . Overflow Damage 4 | . . . . . . . . . . 4 . . . . Projectiles . | . . . . . . . . . . . . . . . Explosions 4 | . . . . . . . . . . 4 . . . . Melee . | . . . . . . . . . . . . . . . Knockbacks 3 | . . . . . . . . . . 3 . . . . Impact . | . . . . . . . . . . . . . . . Kinetic 2 | . . . . . . . . . . 2 . . . . Secondary 1 | . . . . . . . . . . 1 . . . . Self-Inflicted Damage 27 | . . . . . . . . . . 24 . . . 3 Shots 1 | . . . . . . . . . . 1 . . . . Rammed 4 | . . . . . . . . . . . . . . 4 Targets Rammed 4 | . . . . . . . . . . . . . . 4 Kicked . | . . . . . . . . . . . . . . . Crushed . | . . . . . . . . . . . . . . . Highest Temperature 336 | . . . 66 30 . 121 15 114 . 294 136 306 . 336 Average Temperature 63 | . . . 27 18 . 49 10 26 . 85 58 78 . 107 Received Heat Transfer 1509 | . . . 45 18 . 54 . 243 . 480 . 408 . 261 Siege Activations . | . . . . . . . . . . . . . . . Martial Activations . | . . . . . . . . . . . . . . . Shielding Activations . | . . . . . . . . . . . . . . . Robots Disrupted . | . . . . . . . . . . . . . . . Combat Hostiles . | . . . . . . . . . . . . . . . Robots Corrupted . | . . . . . . . . . . . . . . . Combat Hostiles . | . . . . . . . . . . . . . . . Parts Fried . | . . . . . . . . . . . . . . . Impact Corruptions . | . . . . . . . . . . . . . . . Robots Melted . | . . . . . . . . . . . . . . . Combat Hostiles . | . . . . . . . . . . . . . . . Parts Melted 9 | . . 1 . 1 . . . . . 1 . 4 . 2 Heat Transferred 3407 | 175 . 50 . . . . . . . 666 259 1517 . 740 Parts Sabotaged . | . . . . . . . . . . . . . . . Parts Stolen . | . . . . . . . . . . . . . . . Parts Stripped . | . . . . . . . . . . . . . . . Power Chain Reactions . | . . . . . . . . . . . . . . . Alert | -11 -10 -10 -9 -9 -9 -8 -8 -8 -7 -7 -6 -6 -6 -6 ------- Run | Yrd Mat Min Mat Min Exi Min Mat Gar Fac Gar Fac Gar Fac Gar Maximum Alert Level 3 | . . . . . . . . 2 1 2 1 3 2 2 Low Security (%) 38 | 100 100 100 100 100 . 100 100 14 . 5 . . . 16 Level 1 25 | . . . . . . . . 39 100 27 100 13 71 68 Level 2 33 | . . . . . . . . 46 . 67 . 70 28 15 Level 3 2 | . . . . . . . . . . . . 16 . . Level 4 . | . . . . . . . . . . . . . . . Level 5 . | . . . . . . . . . . . . . . . High Security . | . . . . . . . . . . . . . . . Max Security . | . . . . . . . . . . . . . . . Peak Influence 839 | 10 5 50 135 58 . 89 7 622 326 648 377 839 440 488 Initial 440 | . . . 15 33 . . . 2 326 186 340 210 440 193 Average 287 | . . 5 57 5 . 29 . 380 300 427 320 577 360 288 Influence Increases 3021 | 15 10 50 202 58 . 149 11 622 . 632 161 709 7 395 Destroy 0b10 Robot/C 1760 | . . 40 120 40 . 120 . 320 . 460 80 340 . 240 Destroy 0b10 Robot/NC 45 | 15 . . 15 . . . 5 . . 5 5 . . . Destroy Leader 194 | . . 10 52 10 . 20 2 10 . 30 20 20 . 20 Allied During Kill 49 | . . . . 8 . 9 . . . 4 26 2 . . Successful Hack 45 | . 10 . . . . . 4 12 . . . 12 7 . Disable Machine 45 | . . . . . . . . . . . 30 15 . . Anti-Garrison Action 550 | . . . . . . . . 200 . 100 . 200 . 50 Destroy Structure 123 | . . . . . . . . 35 . 33 . 45 . 10 Lose Combat Pursuer 210 | . . . 15 . . . . 45 . . . 75 . 75 Influence Decreases 2683 | 15 10 10 155 145 . 149 7 4 356 250 508 171 569 334 Entered New Map 1339 | . . . 25 54 . . . 2 296 80 308 91 399 84 Time Decay 802 | 15 10 10 130 91 . 149 7 . 60 . 160 . 170 . Lost Part 420 | . . . . . . . . . . 150 . 40 . 230 Lost Ally 122 | . . . . . . . . 2 . 20 40 40 . 20 Squads Dispatched 5 | . 2 . 1 . . . . . . . . . 2 . Investigation 2 | . 2 . . . . . . . . . . . . . Extermination 1 | . . . . . . . . . . . . . 1 . Reinforcement 2 | . . . 1 . . . . . . . . . 1 . Assault . | . . . . . . . . . . . . . . . Garrison . | . . . . . . . . . . . . . . . Intercept . | . . . . . . . . . . . . . . . Searches Triggered . | . . . . . . . . . . . . . . . Construction Impeded . | . . . . . . . . . . . . . . . Haulers Reinforced . | . . . . . . . . . . . . . . . Active Scanning Responses . | . . . . . . . . . . . . . . . Cargo Convoy Interrupts . | . . . . . . . . . . . . . . . Stealth | -11 -10 -10 -9 -9 -9 -8 -8 -8 -7 -7 -6 -6 -6 -6 --------- Run | Yrd Mat Min Mat Min Exi Min Mat Gar Fac Gar Fac Gar Fac Gar Distress Signals 2 | . . . 2 . . . . . . . . . . . Communications Jammed . | . . . . . . . . . . . . . . . Distress Signals . | . . . . . . . . . . . . . . . Times Spotted 112 | . 2 3 8 2 . 6 . 16 . 23 5 23 . 24 Peak Tracking Total 11 | . 2 2 3 2 . 3 . 6 . 6 3 4 . 11 Tactical Retreats 9 | . . . 1 . . . . 1 . . . 4 . 3 Traps | -11 -10 -10 -9 -9 -9 -8 -8 -8 -7 -7 -6 -6 -6 -6 ------- Run | Yrd Mat Min Mat Min Exi Min Mat Gar Fac Gar Fac Gar Fac Gar Traps Triggered 9 | . . . . . . . . . . 4 1 2 . 2 Indirectly . | . . . . . . . . . . . . . . . Trap Hack Attempts . | . . . . . . . . . . . . . . . Triggered . | . . . . . . . . . . . . . . . Disarmed . | . . . . . . . . . . . . . . . Reprogrammed . | . . . . . . . . . . . . . . . Reused . | . . . . . . . . . . . . . . . Traps Extracted . | . . . . . . . . . . . . . . . Installed . | . . . . . . . . . . . . . . . Triggered . | . . . . . . . . . . . . . . . Machines | -11 -10 -10 -9 -9 -9 -8 -8 -8 -7 -7 -6 -6 -6 -6 ---------- Run | Yrd Mat Min Mat Min Exi Min Mat Gar Fac Gar Fac Gar Fac Gar Machines Disabled 9 | . . . . . . . . 2 . 1 2 3 . 1 Max in Single Turn 1 | . . . . . . . . 1 . 1 . 1 . 1 Garrison Relay 4 | . . . . . . . . 2 . . . 1 . 1 Machines Repaired . | . . . . . . . . . . . . . . . Machines Dismantled . | . . . . . . . . . . . . . . . Machines Sabotaged . | . . . . . . . . . . . . . . . Overloaded Fab Kills . | . . . . . . . . . . . . . . . Hacking | -11 -10 -10 -9 -9 -9 -8 -8 -8 -7 -7 -6 -6 -6 -6 --------- Run | Yrd Mat Min Mat Min Exi Min Mat Gar Fac Gar Fac Gar Fac Gar Machines Accessed 23 | . 4 . 1 . 1 . 3 2 2 1 2 3 3 1 Terminals 18 | . 4 . 1 . . . 2 2 1 1 1 3 2 1 Fabricators . | . . . . . . . . . . . . . . . Repair Stations . | . . . . . . . . . . . . . . . Recycling Units . | . . . . . . . . . . . . . . . Scanalyzers . | . . . . . . . . . . . . . . . Garrison Access 4 | . . . . . . . 1 . 1 . 1 . 1 . Total Hacks 48 | . 8 . 3 . 1 . 7 5 3 3 2 7 7 2 Successful 16 | . 5 . . . 1 . 4 1 1 . 1 1 2 . Failed 32 | . 3 . 3 . . . 3 4 2 3 1 6 5 2 Catastrophic 8 | . 1 . . . . . 1 1 . 1 1 2 1 . Database Lockouts . | . . . . . . . . . . . . . . . Manual 12 | . . . 1 . 1 . 5 . 1 . 1 . 3 . Terminals 43 | . 8 . 3 . . . 6 5 2 3 1 7 6 2 Fabricators . | . . . . . . . . . . . . . . . Repair Stations . | . . . . . . . . . . . . . . . Recycling Units . | . . . . . . . . . . . . . . . Scanalyzers . | . . . . . . . . . . . . . . . Garrison Access 4 | . . . . . . . 1 . 1 . 1 . 1 . Terminal Hacks 12 | . 5 . . . 1 . 3 1 . . . 1 1 . Part Schematic 1 | . . . . . . . . . . . . . 1 . Robot Analysis 2 | . . . . . . . 2 . . . . . . . Prototype ID Bank 2 | . 2 . . . . . . . . . . . . . Emergency Access Points 1 | . . . . . . . . . . . . 1 . . Locate Traps 1 | . 1 . . . . . . . . . . . . . Zone Layout 3 | . 2 . . . . . 1 . . . . . . . Garrison Registry 1 | . . . . . . . . 1 . . . . . . Proto ID Catalog 1 | . . . . . 1 . . . . . . . . . Fabricator Hacks . | . . . . . . . . . . . . . . . Repair Station Hacks . | . . . . . . . . . . . . . . . Recycling Unit Hacks . | . . . . . . . . . . . . . . . Scanalyzer . | . . . . . . . . . . . . . . . Garrison Access Hacks 4 | . . . . . . . 1 . 1 . 1 . 1 . Unlock Access 4 | . . . . . . . 1 . 1 . 1 . 1 . Unauthorized Hacks . | . . . . . . . . . . . . . . . Terminals . | . . . . . . . . . . . . . . . Fabricators . | . . . . . . . . . . . . . . . Repair Stations . | . . . . . . . . . . . . . . . Recycling Units . | . . . . . . . . . . . . . . . Scanalyzers . | . . . . . . . . . . . . . . . Garrison Access . | . . . . . . . . . . . . . . . Data Cores Recovered 1 | . . . . . . . . . . . 1 . . . Used . | . . . . . . . . . . . . . . . Hacking Detections 18 | . 3 . 1 . . . 2 2 1 1 1 3 3 1 Full Trace Events 3 | . . . . . . . . 2 . . . 1 . . Feedback Events . | . . . . . . . . . . . . . . . Feedback Blocked . | . . . . . . . . . . . . . . . Robot Schematics Acquired . | . . . . . . . . . . . . . . . Robots Built . | . . . . . . . . . . . . . . . Authchips . | . . . . . . . . . . . . . . . Time . | . . . . . . . . . . . . . . . Total Robot Build Rating . | . . . . . . . . . . . . . . . Part Schematics Acquired 1 | . . . . . . . . . . . . . 1 . Parts Built . | . . . . . . . . . . . . . . . Authchips . | . . . . . . . . . . . . . . . Time . | . . . . . . . . . . . . . . . Total Part Build Rating . | . . . . . . . . . . . . . . . Part Studies Acquired . | . . . . . . . . . . . . . . . Parts Repaired . | . . . . . . . . . . . . . . . Time . | . . . . . . . . . . . . . . . Parts Recycled . | . . . . . . . . . . . . . . . Recycled Matter . | . . . . . . . . . . . . . . . Retrieved Matter . | . . . . . . . . . . . . . . . Retrieved Components . | . . . . . . . . . . . . . . . Parts Scanalyzed . | . . . . . . . . . . . . . . . Part Schematics Acquired . | . . . . . . . . . . . . . . . Parts Damaged . | . . . . . . . . . . . . . . . Bothacking | -11 -10 -10 -9 -9 -9 -8 -8 -8 -7 -7 -6 -6 -6 -6 ------------ Run | Yrd Mat Min Mat Min Exi Min Mat Gar Fac Gar Fac Gar Fac Gar Used RIF Installer 4 | . . . . . . . . 2 . 1 . 1 . . Hotswap 1 | . . . . . . . . . . 1 . . . . Robot Detection 1 | . . . . . . . . 1 . . . . . . Alert ID Control 1 | . . . . . . . . . . . . 1 . . Robots Hacked 3 | . . . . . . . . . . . . . . 3 Non-combat . | . . . . . . . . . . . . . . . Combat 3 | . . . . . . . . . . . . . . 3 Robot Hacks Applied 3 | . . . . . . . . . . . . . . 3 amplify_resonance 2 | . . . . . . . . . . . . . . 2 formatsys_high 1 | . . . . . . . . . . . . . . 1 Relay Couplers Released 16 | . . . . . . . . 7 . . . 5 . 4 Machine Destruction 16 | . . . . . . . . 7 . . . 5 . 4 Attached 1 | . . . . . . . . . . . . . . 1 Fabnet Peak Effective % . | . . . . . . . . . . . . . . . Robots Rewired 5 | . . . . . . . . . . 5 . . . . Allies Hacked . | . . . . . . . . . . . . . . . Hacks Repelled . | . . . . . . . . . . . . . . . Allies | -11 -10 -10 -9 -9 -9 -8 -8 -8 -7 -7 -6 -6 -6 -6 -------- Run | Yrd Mat Min Mat Min Exi Min Mat Gar Fac Gar Fac Gar Fac Gar Total Allies 9 | . . . . 3 . . . . . 5 . . . 1 Largest Group 4 | . . . . 3 3 3 1 1 . 4 4 2 . 1 Highest-Rated Group 128 | . . . . 40 40 40 16 16 . 128 128 64 . 29 Highest-Rated Ally 43 | . . . . 16 16 16 16 16 . 43 43 43 . 29 Total Orders 4 | . . . . . . . 1 . 2 . 1 . . . EXPLORE 2 | . . . . . . . . . 1 . 1 . . . RETURN 2 | . . . . . . . 1 . 1 . . . . . Ally Attacks 61 | . . . . 13 . 11 . 4 . 2 23 7 . 1 Total Damage 1141 | . . . . 149 . 100 . 59 . 43 703 87 . . Kills 6 | . . . . 1 . 2 . . . . 3 . . . Allies Corrupted . | . . . . . . . . . . . . . . . Allies Melted . | . . . . . . . . . . . . . . . Intel | -11 -10 -10 -9 -9 -9 -8 -8 -8 -7 -7 -6 -6 -6 -6 ------- Run | Yrd Mat Min Mat Min Exi Min Mat Gar Fac Gar Fac Gar Fac Gar Active Infowar (turns) 705 | 28 199 193 285 . . . . . . . . . . . Terrain 705 | 28 199 193 285 . . . . . . . . . . . Robot Analysis Total 2 | . . . . . . . 2 . . . . . . . Derelict Logs Recovered 3 | . . 1 . 2 . . . . . . . . . . Drone Launches 3 | . . . . . . . 1 . 1 . 1 . . . Drone Recoveries 3 | . . . . . . . 1 . 1 . 1 . . . Exploration | -11 -10 -10 -9 -9 -9 -8 -8 -8 -7 -7 -6 -6 -6 -6 ------------- Run | Yrd Mat Min Mat Min Exi Min Mat Gar Fac Gar Fac Gar Fac Gar Turns Passed 7475 | 152 199 193 345 981 498 430 141 993 121 1258 321 1238 357 248 Spaces Moved 3862 | 75 195 177 165 591 287 241 68 497 73 526 177 496 173 121 Core 53 | 6 . . . . . . . . . 9 . . . 38 Treads 2007 | . . . 68 591 287 241 68 497 73 182 . . . . Legs 1261 | . . . . . . . . . . 335 177 496 173 80 Wheels 541 | 69 195 177 97 . . . . . . . . . . 3 Hover . | . . . . . . . . . . . . . . . Flight . | . . . . . . . . . . . . . . . Fastest Speed 50 | 50 100 100 100 160 160 160 160 160 160 120 120 120 120 50 Average Speed 143 | 96 100 100 125 160 166 160 160 160 160 177 120 120 120 103 Slowest Speed 450 | 100 100 100 240 160 240 160 160 160 160 450 120 120 120 260 Overloaded Moves . | . . . . . . . . . . . . . . . Propulsion Burnouts . | . . . . . . . . . . . . . . . Robots Hopped . | . . . . . . . . . . . . . . . Potential Cave-ins . | . . . . . . . . . . . . . . . Cave-ins Triggered . | . . . . . . . . . . . . . . . Exploration Rate (%) 36 | 5 42 48 22 86 61 58 9 44 15 61 10 50 6 23 Regions Visited 14 Branch Regions 4 Pre-discovered Areas 1 | . . 1 . . . . . . . . . . . . Known Exits Taken 5 | . . . . . . 1 1 . 1 . 1 . 1 . Unknown Exits Taken 6 | 1 1 1 1 1 1 . . . . . . . . . Scrap Searched 4 | . . 1 . 2 . 1 . . . . . . . . Spaces Dug . | . . . . . . . . . . . . . . . Terrain Destroyed 36 | . . . . . . . . . . 34 . 2 . . Melee . | . . . . . . . . . . . . . . . Projectile 2 | . . . . . . . . . . . . 2 . . AOE 34 | . . . . . . . . . . 34 . . . . Terrain Rammed . | . . . . . . . . . . . . . . . Walls Destroyed . | . . . . . . . . . . . . . . . Machines Disabled . | . . . . . . . . . . . . . . . Actions | -11 -10 -10 -9 -9 -9 -8 -8 -8 -7 -7 -6 -6 -6 -6 --------- Run | Yrd Mat Min Mat Min Exi Min Mat Gar Fac Gar Fac Gar Fac Gar Total 5257 | 133 199 183 271 624 307 266 97 574 77 720 267 1013 321 205 Wait 896 | 42 2 . 59 32 13 16 24 5 . 51 64 411 143 34 Move 3852 | 74 194 176 164 590 286 240 68 496 73 525 177 495 173 121 Hop . | . . . . . . . . . . . . . . . Pick Up 45 | 1 3 2 7 . 4 2 2 4 2 5 3 6 1 3 Fast Attach 33 | 7 . . 4 . . . . 2 . 12 . 5 . 3 Attach 26 | . . . 3 . . . 1 . 2 7 2 2 1 8 Detach . | . . . . . . . . . . . . . . . Swap 61 | . . . 6 1 2 . 1 14 . 8 11 14 2 2 Drop 48 | . . . 13 . 2 . . 8 . 4 4 15 1 1 Fire 220 | 9 . 5 15 1 . 8 1 45 . 51 6 60 . 19 Melee . | . . . . . . . . . . . . . . . Ram 4 | . . . . . . . . . . . . . . 4 Kick . | . . . . . . . . . . . . . . . Crush . | . . . . . . . . . . . . . . . Escape Stasis 35 | . . . . . . . . . . 20 . 5 . 10 Rewire 37 | . . . . . . . . . . 37 . . . . Trap . | . . . . . . . . . . . . . . . Miscellaneous . | . . . . . . . . . . . . . . . Route ------- -11/Scrapyard -10/Materials (discovered 2 exits: [*Min x2]) -10/Mines -9/Materials -9/Mines (discovered 3 exits: *Mat x2 / *Exi) -9/Exiles -8/Mines -8/Materials -8/Garrison (discovered 3 exits: *Fac x3) -7/Factory -7/Garrison (discovered 2 exits: *Fac x2) -6/Factory -6/Garrison (discovered 2 exits: *Fac x2) -6/Factory -6/Garrison History --------- Turn | Location | Event 19 | -11/Scrapyard | Discovered new exit (range 16) 153 | -11/Scrapyard | Entered Materials 154 | -10/Materials | Met a group of wandering Federalists 281 | -10/Materials | Discovered new exit (range 9) 306 | -10/Materials | Build established: Mutant 330 | -10/Materials | Discovered new exit (range 15) 352 | -10/Materials | Entered Mines 353 | -10/Mines | Learned location of Storage (-8) 360 | -10/Mines | Learned Materials garrison access intel 407 | -10/Mines | Met a Derelict bent on vengeance 509 | -10/Mines | Discovered new exit (range 8) 545 | -10/Mines | Entered Materials 545 | -9/Materials | Evolved 2 slots: Weapon x2 842 | -9/Materials | Discovered new exit (range 4) 890 | -9/Materials | Entered Mines 943 | -9/Mines | Learned Materials terminal intel 1132 | -9/Mines | Build established: Scavenger-Gunner 1165 | -9/Mines | Assisted by bots powering up and referring to "LRC-V3" 1310 | -9/Mines | Discovered new exit (range 13) 1347 | -9/Mines | Identified exit to Materials 1853 | -9/Mines | Deemed a non-threat by the Exiles lab entrance 1853 | -9/Mines | Discovered new exit (range 5) 1871 | -9/Mines | Entered Exiles 1871 | -9/Exiles | Accompanied by 3 allies 1913 | -9/Exiles | Met 8R-AWN 1939 | -9/Exiles | Met EX-HEX 1990 | -9/Exiles | Met EX-BIN 2031 | -9/Exiles | Aligned with FarCom system 2033 | -9/Exiles | Given EX-Vault access code 2070 | -9/Exiles | Opened EX-Vault 2091 | -9/Exiles | Found Supersonic Drone Bay 2120 | -9/Exiles | Warned to stay clear of 0b10 Research branches 2173 | -9/Exiles | Met EX-DEC 2228 | -9/Exiles | Discovered new exit (range 14) 2369 | -9/Exiles | Left Exiles lab with Supersonic Drone Bay 2369 | -9/Exiles | Entered Mines 2369 | -8/Mines | Accompanied by 3 allies 2668 | -8/Mines | Build established: Scavenger-Skirmisher 2795 | -8/Mines | Discovered exit to Materials (range 3) 2799 | -8/Mines | Entered Materials 2799 | -8/Materials | Accompanied by 1 ally 2799 | -8/Materials | Evolved 2 slots: Propulsion x1, Utility x1 2800 | -8/Materials | Loaded intel: 12 terminal locations 2801 | -8/Materials | Loaded intel: 1 garrison access location 2940 | -8/Materials | Identified exit to Garrison 2940 | -8/Materials | Entered Garrison 2940 | -8/Garrison | Accompanied by 1 ally 3010 | -8/Garrison | Triggered checkpoint 3028 | -8/Garrison | Triggered checkpoint 3056 | -8/Garrison | Triggered checkpoint 3308 | -8/Garrison | Discovered new exit (range 12) 3326 | -8/Garrison | Discovered new exit (range 62) 3326 | -8/Garrison | Discovered new exit (range 66) 3326 | -8/Garrison | Discovered new exit (range 7) 3382 | -8/Garrison | Triggered checkpoint 3431 | -8/Garrison | Installed Relay Interface Framework 3581 | -8/Garrison | Expanded RIF knowledge: Robot Detection 3720 | -8/Garrison | Garrison Relay disabled 3880 | -8/Garrison | Garrison Relay disabled 3933 | -8/Garrison | Entered Factory 3933 | -7/Factory | Evolved 2 slots: Utility x1, Weapon x1 4054 | -7/Factory | Identified exit to Garrison 4054 | -7/Factory | Entered Garrison 4190 | -7/Garrison | Triggered checkpoint 4338 | -7/Garrison | Discovered new exit (range 16) 4408 | -7/Garrison | Triggered checkpoint 4518 | -7/Garrison | Destroyed 7 combat bots 4524 | -7/Garrison | Lost 13 parts (1p3n1u8w) 4754 | -7/Garrison | Triggered checkpoint 5012 | -7/Garrison | Triggered checkpoint 5061 | -7/Garrison | Core integrity fell below 50% 5175 | -7/Garrison | Discovered new exit (range 10) 5243 | -7/Garrison | Expanded RIF knowledge: Hotswap 5312 | -7/Garrison | Entered Factory 5312 | -6/Factory | Accompanied by 4 allies 5312 | -6/Factory | Evolved 2 slots: Propulsion x2 5554 | -6/Factory | Spotted B-75 Beast 5572 | -6/Factory | Allies destroyed B-75 Beast 5633 | -6/Factory | Identified exit to Garrison 5633 | -6/Factory | Entered Garrison 5633 | -6/Garrison | Accompanied by 2 allies 5653 | -6/Garrison | Triggered checkpoint 6013 | -6/Garrison | Triggered checkpoint 6063 | -6/Garrison | Triggered checkpoint 6127 | -6/Garrison | Garrison Relay disabled 6164 | -6/Garrison | Discovered new exit (range 12) 6637 | -6/Garrison | Triggered checkpoint 6761 | -6/Garrison | Triggered checkpoint 6797 | -6/Garrison | Discovered new exit (range 12) 6806 | -6/Garrison | Expanded RIF knowledge: Alert ID Control 6871 | -6/Garrison | Entered Factory 7228 | -6/Factory | Identified exit to Garrison 7228 | -6/Factory | Entered Garrison 7258 | -6/Garrison | Triggered checkpoint 7301 | -6/Garrison | Garrison Relay disabled 7378 | -6/Garrison | Triggered checkpoint 7420 | -6/Garrison | Triggered checkpoint 7444 | -6/Garrison | Core integrity fell below 50% 7448 | -6/Garrison | Destroyed 11 combat bots 7453 | -6/Garrison | Core integrity fell below 20% 7476 | -6/Garrison | Destroyed by S-27 Virus with Autogun Last Messages --------------- 07438_ Wheel destroyed. 07438_ Autogun destroyed. 07439_ Acquired Gravmag System. 07439_ Gravmag System destroyed. 07443_ Lgt. Nuclear Core critical resonance detonation. 07443_ G-50 Soldier Lgt. Angular Momentum Engine critical resonance detonation. 07443_ Remote Datajack destroyed. 07443_ Carbon-fiber Leg destroyed. 07446_ Lgt. Nuclear Core destroyed. 07450_ P-60 Hacker resets G-50 Soldier, system corruption cleaned. 07451_ Carbon-fiber Leg destroyed. 07452_ Dropped Hcp. Storage Unit. 07463_ Detecting nearby RIF Installer. 07470_ Slammed into S-27 Virus. 07470_ Imp. Targeting Computer broken. 07470_ Destabilizing: Short circuit. 07471_ Slammed into S-27 Virus. Map ----- +----------------------------------------------------+ | ????????????????????# #### #??????????????????? | | ????????????????????# #??# ###????????????????? | | ???????????????????## #??# # #????????????????? | | ???????????????????#T #??# ! "#????????????????? | | ???????????????????## #??# !"#????????????????? | | ????????????????????# #??# "#????????????????? | | ????????????????????# #??# #"#????????????????? | | ????####????????????# #??######????????????????? | | #???# ???????????# #????????????????????????? | | # ## ############ #????????????????????????? | | "%" !% ###??????????????????????? | | "/=[*[= ^ " ???????????????????? | | = = [ #????????????????????????? | | ???## # [% "##########????????????????????????? | | ## #"% ###????????????????????????????????? | | [ !!!#????????????????????????????????? | | !!!#????????????????????????????????? | | = *!|!###??????????????????????????????? | | *%= ! #??????????????????????????????? | | ## [## ^### #??????????????????????????????? | | ???# ?# #?# #??????????????????????????????? | | ??? ? #?# #???????????????????###????????? | | ? #?# #??????????????????"""#????????? | | ? #?# #????????????????? "#????????? | | ? ## ## ### ################## "#????????? | | ????# ?# + g @ s ssp "#????????? | | ????####??# ### ############# ## #"#????????? | | ??????????# ??# #???????????# ## #??????????? | | ??????????# ??# #???????????# #######??????????? | | ??????????# ??# #???????????# #????????????????? | | ??????????# ??###???????????###????????????????? | | ?????????????????????????????s???????????????????? | | ?????????????????????????????????????????????????? | | ?????????????????????????????????????????????????? | | ?????????????????????????????????????????????????? | | ?????????????????????????????????????????????????? | | ?????????????????????????????????????????????????? | | ???????????????????????????????????????""""??????? | | ???????????????????????????????????????"?????????? | | ???????????????????????????????????????""""??????? | | ?????????????????????????????????????????????????? | | ???????????????????????????gg????????????????????? | | ?????????????????????????????????????????????????? | | ?????????????????????????????????????????????????? | | ?????????????????????????????????????????????????? | | ?????????????????????????????????????????????????? | | ?????????????????????????????????????????????????? | | ?????????????????????????????????????????????????? | | ?????????????????????????????????????????????????? | | ?????????????????????????????????????????????????? | +----------------------------------------------------+ Best States ------------- Heat Dissipation 56 Energy Generation 18 Energy Capacity 300 Matter Stores 300 Matter Capacity 300 Sight Range 16 Terrain Scan Range 16 Terrain Scan Density 10 Armor Coverage 225 Weapon Shielding 33 Evasion (%) 55 Targeting Accuracy 11 Recoil Reduction 3 Offensive Hacking 10 Relay Coupler Types 1 Relay Coupler Value 21 Item Schematics ----------------- Hvy. Gauss Cannon | -6/Factory | Hacked Robot Schematics ------------------ None Fabricated ------------ Nothing Repaired ---------- Nothing Studied --------- None Alien Tech Used ----------------- None Achievements -------------- None Challenges ------------ None Game ------ Seed ImprinterDisposableCanceller Manual? 0 Play Time 00:58:12 Cumulative 223.9 hours Start 2026.07.17 @ 15:15:05 End 2026.07.18 @ 11:33:14 Sessions 7 Manual Loads 0 Difficulty Rogue Special Mode None Game No. 303 Rogue 303 Adventurer 0 Explorer 0 Win Type - Total 3 Types 2/0/0/1/0/0/0/0/0/0 Lore% 76 Gallery% 63 Achievement% 51 Wizard Run 0 Options --------- Layout 2 ASCII 0 Keyboard 0 Movement Mouse Keybinds 0 Fullscreen 1 Font 24/Smallcaps Map View 50x44 Zoom Use 0% Tactical HUD 1 Map Filters NONE Filters NONE Steam 1 RUN: 37f56280-04f7-407f-9ab0-d373fc2d07eb